bitfinex-derivatives/quotes_SOLF0:USTF0_20260108
["timestamp","ask_amount","ask_price","bid_price","bid_amount"]
[1767834184044,0.32713194,136.77,136.71,2.15329341]
[1767834184241,0.32713194,136.77,136.7,6.5901]
[1767834184547,0.32713194,136.76,136.7,6.5901]
[1767834184941,0.05424874,136.75,136.7,6.5901]
[1767834186248,0.05424874,136.75,136.69,2.15329341]
[1767834186549,0.38138068,136.75,136.69,2.15329341]
[1767834188351,0.38138068,136.75,136.69,8.74389341]
[1767834188850,0.38138068,136.75,136.69,2.15329341]
[1767834189550,6.96928068,136.75,136.69,2.15329341]
[1767834189751,0.05424874,136.75,136.69,2.15329341]
[1767834190546,0.05424874,136.75,136.69,8.74389341]
[1767834191156,0.05424874,136.75,136.71,2.15329341]
[1767834191751,6.91363194,136.78,136.71,2.15329341]
[1767834192142,6.91363194,136.78,136.73,2.15329341]
[1767834195054,0.32713194,136.82,136.75,2.15329341]
[1767834195250,0.32713194,136.82,136.77,2.15329341]
[1767834197756,86.4,136.84,136.79,2.15329341]
[1767834198958,0.32713194,136.85,136.79,2.15329341]
[1767834199651,0.32713194,136.85,136.78,6.5863]
[1767834204357,0.32713194,136.84,136.78,6.5863]
[1767834209758,6.91053194,136.84,136.76,2.15329341]
[1767834211664,6.91053194,136.84,136.77,6.5867]
[1767834212166,0.30532777,136.82,136.74,2.15329341]
[1767834212352,0.30532777,136.8,136.72,2.15329341]
[1767834212662,86.38,136.82,136.7,2.15329341]
[1767834212663,0.30532777,136.78,136.7,2.15329341]
[1767834213460,6.587,136.77,136.71,6.5897]
[1767834213663,0.30532777,136.78,136.71,6.5897]
[1767834214365,0.30532777,136.78,136.72,6.5892]
[1767834215265,2.45862118,136.8,136.72,6.5892]
[1767834215457,0.30532777,136.79,136.72,8.74249341]
[1767834215657,6.89122777,136.79,136.72,8.74249341]
[1767834217163,95.42392118,136.81,136.72,2.15329341]
[1767834218660,95.42392118,136.81,136.74,6.5882]
[1767834220681,93.27062777,136.81,136.74,6.5882]
[1767834221969,0.30532777,136.8,136.74,6.5882]
[1767834229975,0.30532777,136.8,136.75,6.5877]
[1767834230373,92.9653,136.81,136.75,6.5877]
[1767834230568,0.30532777,136.84,136.74,6.7735105]
[1767834230875,0.30532777,136.84,136.74,10.14565373]
[1767834231577,6.88872777,136.84,136.77,6.5863]
[1767834236576,0.30532777,136.84,136.78,6.5862]
[1767834236877,6.5829,136.86,136.76,109.2425105]
[1767834236878,0.30532777,136.86,136.76,109.2425105]
[1767834237273,0.30532777,136.86,136.79,6.5858]
[1767834238083,0.30532777,136.86,136.8,6.5852]
[1767834238976,6.5823,136.87,136.8,6.5852]
[1767834239680,86.70532777,136.88,136.81,6.5846]
[1767834239982,0.30532777,136.88,136.8,6.7735105]
[1767834240187,0.30532777,136.88,136.81,6.7735105]
[1767834241683,0.30532777,136.88,136.82,6.5843]
[1767834242584,0.30532777,136.88,136.8,6.7735105]
[1767834243581,0.30532777,136.88,136.81,6.5848]
[1767834247488,0.30532777,136.88,136.82,6.5843]
[1767834248484,0.32995478,136.87,136.8,6.5851]
[1767834249576,0.32881237,136.86,136.8,6.5851]
[1767834250485,0.32881237,136.86,136.78,6.7735105]
[1767834250696,0.32881237,136.85,136.76,10.14565373]
[1767834250890,0.32881237,136.85,136.76,112.61215373]
[1767834252592,0.32881237,136.85,136.79,6.5858]
[1767834253792,0.32881237,136.84,136.75,6.7735105]
[1767834255592,6.91281237,136.83,136.76,6.5872]
[1767834259894,6.584,136.83,136.77,6.5867]
[1767834261391,6.91281237,136.83,136.77,6.5867]
[1767834261995,0.32881237,136.87,136.79,6.5858]
[1767834263701,6.91161237,136.86,136.79,6.5858]
[1767834269416,0.32881237,136.85,136.79,6.5858]
[1767834272106,0.31831205,136.84,136.77,13.3598105]
[1767834272306,0.31831205,136.84,136.76,6.7735105]
[1767834272495,0.31831205,136.84,136.75,6.7735105]
[1767834273008,0.31831205,136.84,136.76,6.7735105]
[1767834273705,0.31831205,136.86,136.77,6.7735105]
[1767834273900,0.31831205,136.86,136.78,6.7735105]
[1767834275818,0.31831205,136.86,136.79,6.5858]
[1767834276115,0.31831205,136.86,136.79,13.3593105]
[1767834277717,6.90081205,136.86,136.79,13.3593105]
[1767834280319,0.31831205,136.86,136.79,6.7735105]
[1767834280610,92.9619,136.88,136.81,6.7735105]
[1767834280611,93.28021205,136.88,136.81,6.7735105]
[1767834280815,93.28021205,136.88,136.81,13.3583105]
[1767834281606,93.28021205,136.88,136.82,13.3579105]
[1767834282514,93.28021205,136.88,136.82,6.5844]
[1767834284923,93.28021205,136.88,136.81,13.3581105]
[1767834289724,0.31831205,136.88,136.81,6.7735105]
[1767834290625,0.31831205,136.88,136.83,6.5838]
[1767834295716,0.31831205,136.9,136.84,6.5834]
[1767834298125,6.89901205,136.9,136.84,6.5834]
[1767834302027,6.89901205,136.9,136.83,6.5839]
[1767834302628,0.30442658,136.88,136.81,13.3579105]
[1767834303328,0.05191531,136.86,136.81,13.3579105]
[1767834304130,0.05191531,136.86,136.82,6.7735105]
[1767834304629,0.05191531,136.86,136.82,13.3577105]
[1767834307526,6.88542658,136.9,136.83,6.7735105]
[1767834308133,6.88542658,136.9,136.83,13.3574105]
[1767834308928,0.05532684,136.88,136.83,13.3574105]
[1767834319349,0.05532684,136.88,136.84,6.7735105]
[1767834322046,0.05532684,136.88,136.83,13.3574105]
[1767834323251,0.05532684,136.88,136.84,6.7735105]
[1767834326457,0.05532684,136.88,136.83,6.5839]
[1767834326654,0.05532684,136.88,136.84,6.77580056]
[1767834334159,0.05532684,136.88,136.84,13.35920056]
[1767834334666,0.05532684,136.88,136.84,6.77580056]
[1767834342274,2.15578727,136.94,136.86,6.77580056]
[1767834342470,0.32068117,136.93,136.86,6.77580056]
[1767834342665,6.5796,136.92,136.86,13.35820056]
[1767834344165,6.90028117,136.92,136.86,6.77580056]
[1767834352282,6.5801,136.91,136.86,6.77580056]
[1767834353080,0.0487101,136.9,136.86,6.77580056]
[1767834359283,0.0487101,136.9,136.85,13.35830056]
[1767834359683,0.0487101,136.9,136.86,6.77580056]
[1767834360484,0.0487101,136.9,136.85,13.35830056]
[1767834360685,0.0487101,136.9,136.86,6.5824]
[1767834360985,0.32068117,136.94,136.86,6.8286833]
[1767834361377,0.32068117,136.94,136.86,6.77580056]
[1767834361986,0.32068117,136.94,136.85,6.77580056]
[1767834362287,0.33319996,136.92,136.85,6.77580056]
[1767834362478,0.32719289,136.9,136.84,6.77580056]
[1767834362683,0.32719289,136.9,136.83,6.77580056]
[1767834363289,0.32719289,136.89,136.83,13.35970056]
[1767834364692,86.66719289,136.91,136.83,6.77580056]
[1767834364886,86.66719289,136.91,136.84,6.77580056]
[1767834365193,86.66719289,136.91,136.85,6.5825]
[1767834365388,86.66719289,136.91,136.84,6.77580056]
[1767834366184,86.34,136.91,136.85,6.77580056]
[1767834366677,86.34,136.91,136.86,6.5824]
[1767834368292,86.34,136.91,136.85,6.77580056]
[1767834369383,86.66719289,136.91,136.85,6.77580056]
[1767834370300,93.24729289,136.91,136.85,6.77580056]
[1767834371594,93.24729289,136.91,136.84,6.5833]
[1767834375703,86.34,136.91,136.83,3.36650115]
[1767834375899,0.32719289,136.93,136.84,188.7671]
[1767834376098,0.32719289,136.93,136.84,102.4071]
[1767834376394,0.32719289,136.93,136.84,188.7671]
[1767834377293,0.32719289,136.93,136.88,6.5814]
[1767834383506,0.32719289,136.93,136.86,6.582]
[1767834384007,0.32719289,136.93,136.85,9.03134733]
[1767834384792,0.32719289,136.93,136.87,6.5817]
[1767834386008,6.5786,136.94,136.87,6.5817]
[1767834386707,6.90579289,136.94,136.87,6.5817]
[1767834388607,6.90579289,136.94,136.86,9.03134733]
[1767834388909,6.90539289,136.95,136.86,9.03134733]
[1767834389108,0.32719289,136.95,136.86,9.03134733]
[1767834390807,0.32719289,136.95,136.89,6.5806]
[1767834391308,0.32719289,136.95,136.9,6.5805]
[1767834393020,0.32719289,136.95,136.89,6.581]
[1767834394217,0.32719289,136.95,136.9,6.5804]
[1767834395711,6.90781878,136.97,136.9,6.5804]
[1767834396017,0.33061878,136.97,136.9,6.5804]
[1767834397824,0.33061878,136.97,136.91,6.58]
[1767834398906,0.33061878,136.97,136.92,6.5795]
[1767834399610,86.32,136.99,136.92,6.5795]
[1767834399821,86.65061878,136.99,136.92,6.5795]
[1767834400517,93.22691878,136.99,136.89,114.76944848]
[1767834400714,93.22691878,136.99,136.89,201.10944848]
[1767834401619,93.22691878,136.99,136.92,6.5791]
[1767834402317,93.22691878,136.99,136.89,192.07810115]
[1767834402318,93.22691878,136.99,136.93,6.5791]
[1767834404710,95.37934906,136.99,136.93,6.5791]
[1767834406229,88.80304906,136.99,136.93,6.5791]
[1767834407022,88.80304906,136.99,136.92,6.5795]
[1767834407229,88.80304906,136.99,136.91,2.15243028]
[1767834408630,88.80304906,136.99,136.93,6.5791]
[1767834409129,0.33061878,136.98,136.93,6.5791]
[1767834411233,0.33061878,136.98,136.94,6.5785]
[1767834418746,2.15243028,136.99,136.95,6.5781]
[1767834419835,2.15243028,136.99,136.94,6.5786]
[1767834421347,9.05834906,137.01,136.94,6.5786]
[1767834423146,0.32020826,137.0,136.94,6.5786]
[1767834424544,0.32020826,136.98,136.93,6.5791]
[1767834432348,0.32020826,136.98,136.92,6.5795]
[1767834433539,0.32020826,136.97,136.91,6.74941373]
[1767834433745,0.32020826,136.96,136.9,6.74941373]
[1767834433944,0.32020826,136.95,136.89,6.74941373]
[1767834434150,2.47263854,136.95,136.89,6.74941373]
[1767834434450,9.05083854,136.95,136.89,13.32991373]
[1767834434655,2.47263854,136.95,136.89,13.32991373]
[1767834437654,2.47263854,136.95,136.89,6.5805]
[1767834442259,2.47263854,136.95,136.9,6.5804]
[1767834445054,0.32020826,136.94,136.88,6.74941373]
[1767834445358,0.32020826,136.94,136.87,8.90184401]
[1767834446156,0.32020826,136.94,136.89,6.581]
[1767834448558,6.89790826,136.96,136.9,6.5805]
[1767834451060,0.32020826,136.99,136.89,2.15243028]
[1767834451263,2.47263854,136.99,136.91,2.15243028]
[1767834451461,0.32020826,136.99,136.91,8.90184401]
[1767834451764,0.32020826,137.01,136.94,6.5786]
[1767834452155,0.30270148,136.99,136.92,6.74941373]
[1767834452668,0.30270148,136.99,136.91,8.90184401]
[1767834453666,6.87900148,136.99,136.92,6.5796]
[1767834459265,0.30270148,136.98,136.92,6.5796]
[1767834459470,0.30270148,136.97,136.91,2.15243028]
[1767834459668,0.30270148,136.97,136.9,95.22184401]
[1767834460666,0.30270148,136.97,136.91,6.5798]
[1767834465272,6.87990148,136.97,136.91,6.5798]
[1767834465982,0.30270148,136.96,136.89,8.90184401]
[1767834466681,0.30270148,136.96,136.89,6.74941373]
[1767834467681,0.30270148,136.96,136.9,6.5805]
[1767834468480,0.30270148,136.96,136.91,6.58]
[1767834474991,0.30270148,136.96,136.91,13.32941373]
[1767834475187,6.87940148,136.98,136.91,6.58]
[1767834475376,0.30270148,137.0,136.92,6.5794]
[1767834475686,0.30270148,137.0,136.92,3.36406219]
[1767834476087,0.30270148,137.0,136.93,6.579]
[1767834477594,6.5762,136.99,136.93,6.579]
[1767834479092,6.87890148,136.99,136.93,6.579]
[1767834481204,6.87890148,136.99,136.92,6.5795]
[1767834481796,0.30270148,136.97,136.91,6.74941373]
[1767834482001,0.30270148,136.97,136.9,6.74941373]
[1767834483707,6.88020148,136.97,136.91,6.58]
[1767834485109,6.88020148,136.97,136.91,13.32941373]
[1767834485301,6.88020148,136.97,136.91,6.58]
[1767834485503,6.5767,136.99,136.91,6.58]
[1767834485806,6.5767,136.99,136.91,6.74941373]
[1767834486006,0.3142565,137.0,136.93,6.74941373]
[1767834486209,0.3142565,137.0,136.94,0.04712138]
[1767834486600,6.8899565,137.0,136.94,6.62572138]
[1767834487100,6.8899565,137.0,136.94,0.04712138]
[1767834489910,0.3142565,136.99,136.94,0.04712138]
[1767834493819,6.8904565,136.99,136.94,0.04712138]
[1767834496822,6.8909565,136.98,136.94,0.04712138]
[1767834497513,0.3142565,136.97,136.9,9.03134733]
[1767834497720,0.3142565,136.93,136.87,9.03134733]
[1767834497919,0.3142565,136.93,136.86,221.15268958]
[1767834498114,0.3142565,136.93,136.86,227.73488958]
[1767834499423,0.3142565,136.93,136.86,218.70354225]
[1767834504025,0.3142565,136.93,136.86,6.5822]
[1767834504224,6.5786,136.94,136.87,6.5819]
[1767834506417,6.8928565,136.94,136.87,6.5819]
[1767834507421,6.8928565,136.94,136.86,3.36406219]
[1767834508520,6.8928565,136.94,136.86,9.94646219]
[1767834509717,0.05378492,136.91,136.89,0.04902912]
[1767834510929,0.05378492,136.91,136.84,6.583]
[1767834510930,0.36804142,136.91,136.84,6.583]
[1767834515232,0.05378492,136.91,136.85,6.5829]
[1767834518733,0.37448909,136.91,136.85,6.5829]
[1767834522943,0.37448909,136.91,136.86,6.5823]
[1767834523134,0.05378492,136.91,136.86,6.5823]
[1767834523335,6.89980417,136.93,136.84,3.36406219]
[1767834523736,188.6246,136.96,136.84,3.36406219]
[1767834523737,0.32070417,136.95,136.86,3.36406219]
[1767834525333,0.32070417,136.95,136.86,89.70406219]
[1767834525541,0.32070417,136.95,136.89,6.581]
[1767834530844,0.32070417,136.95,136.88,2.15339405]
[1767834530845,0.32070417,136.97,136.91,6.58]
[1767834531947,0.32070417,136.99,136.92,6.5796]
[1767834532544,0.32070417,136.99,136.92,8.73299405]
[1767834533747,6.89690417,136.99,136.92,8.73299405]
[1767834537248,6.89690417,136.99,136.94,0.04663733]
[1767834537449,0.05505705,136.97,136.94,0.04663733]
[1767834540057,0.05505705,136.97,136.92,6.5796]
[1767834541246,0.05505705,136.97,136.91,6.58]
[1767834541451,0.37576122,136.97,136.91,6.58]
[1767834547443,0.37576122,136.97,136.92,6.5796]
[1767834555157,0.37576122,136.97,136.93,6.5791]
[1767834557154,0.37576122,136.97,136.89,2.15339405]
[1767834557356,0.31539695,136.96,136.88,2.15339405]
[1767834557655,0.31539695,136.96,136.88,8.90386587]
[1767834558258,0.05270765,136.93,136.88,8.90386587]
[1767834558757,0.05270765,136.93,136.9,6.5805]
[1767834560254,0.05270765,136.93,136.89,6.581]
[1767834560454,0.05270765,136.93,136.88,2.15339405]
[1767834560659,0.05270765,136.93,136.87,6.75047182]
[1767834561556,0.05270765,136.93,136.88,6.5815]
[1767834562258,0.05270765,136.93,136.88,13.33197182]
[1767834563555,0.05270765,136.93,136.88,6.5815]
[1767834565154,0.05270765,136.93,136.89,6.581]
[1767834565460,0.05270765,136.93,136.88,8.90386587]
[1767834566553,0.05270765,136.93,136.9,6.5805]
[1767834573264,6.89381171,136.97,136.91,6.58]
[1767834573463,2.15339405,136.98,136.9,6.75047182]
[1767834574064,2.47000576,136.98,136.9,6.75047182]
[1767834574571,9.04670576,136.98,136.92,6.5795]
[1767834579566,95.36600576,137.0,136.93,6.579]
[1767834580670,0.31661171,136.99,136.93,6.579]
[1767834581969,6.89281171,136.99,136.93,6.579]
[1767834585974,6.89281171,136.99,136.92,13.32997182]
[1767834590486,0.31661171,136.98,136.92,13.32997182]
[1767834601096,0.31661171,136.98,136.93,6.5789]
[1767834601590,0.31661171,136.98,136.92,13.32997182]
[1767834604197,0.31661171,136.98,136.92,6.5795]
[1767834604500,0.31661171,136.98,136.92,13.32997182]
[1767834611910,6.89351171,136.98,136.92,13.32997182]
[1767834615110,6.90940998,136.97,136.92,6.75047182]
[1767834620115,0.05235331,136.96,136.93,0.05151781]
[1767834627423,0.33220998,137.0,136.93,0.05151781]
[1767834628527,0.33220998,136.99,136.93,0.05151781]
[1767834629227,6.90840998,136.99,136.93,0.05151781]
[1767834629643,86.3,137.02,136.93,0.05151781]
[1767834629644,0.33220998,136.98,136.93,0.05151781]
[1767834630044,0.33220998,136.98,136.92,6.75047182]
[1767834630441,0.33220998,136.98,136.94,0.05541547]
[1767834630643,6.90910998,136.98,136.94,0.05541547]
[1767834630842,0.33220998,136.97,136.94,0.05541547]
[1767834633346,6.90940998,136.97,136.92,6.75047182]
[1767834633547,6.90940998,136.97,136.91,6.75047182]
[1767834633847,6.90940998,136.97,136.9,6.5805]
[1767834633848,6.90940998,136.97,136.9,13.33097182]
[1767834634639,0.32482009,136.96,136.9,13.33097182]
[1767834636838,0.32482009,136.96,136.91,6.75047182]
[1767834637248,0.32482009,136.96,136.91,13.33047182]
[1767834637448,6.5772,136.97,136.91,13.33047182]
[1767834639253,6.90152009,136.98,136.91,13.33047182]
[1767834639753,0.32482009,136.98,136.93,6.75047182]
[1767834640654,0.32482009,136.98,136.93,13.32947182]
[1767834642458,0.32482009,137.0,136.93,6.75047182]
[1767834642753,0.32482009,137.0,136.94,6.75047182]
[1767834643452,0.32482009,137.0,136.93,13.32907182]
[1767834645463,0.32482009,137.0,136.94,13.32887182]
[1767834645958,0.32482009,137.03,136.94,6.75047182]
[1767834646169,9.914e-05,137.05,137.01,3.36317469]
[1767834646357,0.32482009,137.1,137.01,3.36317469]
[1767834646956,0.32482009,137.09,137.0,6.740663]
[1767834647353,0.32482009,137.09,136.99,10.10383769]
[1767834647664,0.32482009,137.06,136.98,13.316963]
[1767834648461,0.32482009,137.06,136.98,6.5763]
[1767834648666,6.89782009,137.06,136.98,6.5763]
[1767834650657,9.04698826,137.08,136.99,2.14986817]
[1767834650863,9.04698826,137.08,137.01,2.14986817]
[1767834650864,6.89712009,137.08,137.01,2.14986817]
[1767834652665,6.89712009,137.08,137.01,8.72496817]
[1767834654974,2.14986817,137.1,136.97,102.3082]
[1767834654975,0.32482009,137.05,136.97,2.14986817]
[1767834655271,0.32482009,137.05,136.99,2.14986817]
[1767834655465,0.32482009,137.05,136.99,8.72586817]
[1767834655662,0.32482009,137.07,136.99,2.14986817]
[1767834656568,0.32482009,137.07,137.01,6.5752]
[1767834657575,0.32482009,137.07,136.99,8.72576817]
[1767834660572,0.32482009,137.07,137.0,6.5757]
[1767834661875,6.89722009,137.07,137.0,6.5757]
[1767834664062,6.89397842,137.09,137.02,6.5746]
[1767834664263,2.14986817,137.05,136.95,8.89053117]
[1767834664467,2.52026914,137.05,136.95,2.14986817]
[1767834664664,2.47204659,137.05,136.95,2.14986817]
[1767834665572,102.2189,137.1,136.95,2.14986817]
[1767834665573,0.05274582,137.01,136.97,2.14986817]
[1767834665783,2.47204659,137.07,136.97,2.14986817]
[1767834666074,0.32217842,137.06,136.97,2.14986817]
[1767834666671,2.14986817,137.07,136.98,104.45436817]
[1767834666872,0.32217842,137.08,136.98,104.45436817]
[1767834667073,0.32217842,137.08,137.02,6.5747]
[1767834667382,9.04344659,137.1,137.0,2.14986817]
[1767834668066,0.32217842,137.1,137.02,2.14986817]
[1767834668272,2.14986817,137.17,137.07,2.14986817]
[1767834668576,2.14986817,137.17,137.09,2.14986817]
[1767834668973,0.32217842,137.16,137.09,2.14986817]
[1767834669173,0.32217842,137.14,137.03,6.740663]
[1767834669379,2.14986817,137.13,137.04,2.14986817]
[1767834670174,8.71946817,137.13,137.04,8.72326817]
[1767834671180,9.04164659,137.13,137.04,8.72326817]
[1767834671380,6.89227842,137.12,137.04,8.72326817]
[1767834671577,2.14986817,137.11,137.04,6.5734]
[1767834672282,9.04214659,137.12,137.04,8.72326817]
[1767834673181,6.89227842,137.12,137.04,8.72326817]
[1767834673685,0.32217842,137.12,137.05,6.5732]
[1767834675487,6.89057842,137.16,137.06,2.14986817]
[1767834676682,9.04064659,137.15,137.07,6.5722]
[1767834677676,0.32217842,137.14,137.07,6.5722]
[1767834677986,6.89127842,137.14,137.07,6.5722]
[1767834678187,0.32217842,137.13,137.07,6.5722]
[1767834678877,0.32217842,137.12,137.05,6.573]
[1767834679386,6.89227842,137.12,137.05,6.573]
[1767834679985,6.89227842,137.12,137.04,2.14986817]
[1767834680688,6.89227842,137.12,137.05,6.5733]
[1767834682081,0.32217842,137.11,137.05,6.5733]
[1767834682485,0.32217842,137.11,137.03,8.72376817]
[1767834682987,0.32217842,137.11,137.03,2.14986817]
[1767834683901,9.04254659,137.11,137.03,2.14986817]
[1767834684104,0.32217842,137.1,137.03,2.14986817]
[1767834684290,0.32217842,137.1,137.01,8.89053117]
[1767834685397,0.32217842,137.1,137.04,6.5738]
[1767834687185,0.32217842,137.1,137.05,6.5733]
[1767834687392,0.32217842,137.12,137.05,6.5733]
[1767834687787,0.32217842,137.15,137.08,6.5719]
[1767834688694,0.32217842,137.14,137.08,6.5719]
[1767834693302,0.32338245,137.16,137.09,8.72126817]
[1767834694395,0.32338245,137.16,137.09,6.5714]
[1767834694602,0.32338245,137.16,137.07,2.14986817]
[1767834695604,6.5686,137.15,137.08,6.5719]
[1767834697197,6.89198245,137.15,137.08,6.5719]
[1767834705111,6.89198245,137.15,137.09,6.5714]
[1767834708112,0.32338245,137.14,137.07,8.72186817]
[1767834708504,0.32338245,137.13,137.07,8.72186817]
[1767834708705,0.32338245,137.13,137.06,15.46333117]
[1767834708908,0.32338245,137.13,137.06,8.89053117]
[1767834709106,0.32338245,137.11,137.04,95.11053117]
[1767834709307,0.32338245,137.11,137.04,6.740663]
[1767834709504,0.32338245,137.11,137.03,8.89053117]
[1767834710309,0.32338245,137.11,137.04,6.740663]
[1767834710611,0.32338245,137.11,137.04,13.314463]
[1767834712913,0.32338245,137.1,137.04,6.740663]
[1767834713116,0.32338245,137.1,137.03,6.740663]
[1767834713503,0.32338245,137.09,137.03,6.740663]
[1767834713914,0.32338245,137.09,137.02,13.315163]
[1767834714513,0.32338245,137.09,137.03,6.5742]
[1767834718315,0.32338245,137.09,137.02,6.740663]
[1767834719613,0.32338245,137.09,137.02,13.315363]
[1767834722818,0.32338245,137.09,137.03,6.5743]
[1767834723818,0.30866571,137.11,137.04,6.5738]
[1767834725621,6.87916571,137.11,137.04,6.5738]
[1767834729525,6.87916571,137.11,137.03,13.314963]
[1767834729526,6.571,137.1,137.03,13.314963]
[1767834730027,6.87966571,137.1,137.03,13.314963]
[1767834730211,6.87966571,137.1,137.03,6.5743]
[1767834737231,6.5715,137.09,137.03,6.5743]
[1767834740531,6.87966571,137.1,137.03,6.5743]
[1767834744237,6.87966571,137.1,137.03,13.314963]
[1767834744934,0.30866571,137.1,137.04,6.5737]
[1767834745141,6.5705,137.11,137.04,6.5737]
[1767834745532,6.5705,137.11,137.04,13.314363]
[1767834746239,6.87916571,137.11,137.04,13.314363]
[1767834747339,6.87916571,137.11,137.05,6.5733]
[1767834750342,0.30866571,137.11,137.06,6.5728]
[1767834752838,0.30866571,137.11,137.06,13.313463]
[1767834753144,0.30866571,137.11,137.06,6.5728]
[1767834753446,0.30866571,137.11,137.06,13.313463]
[1767834755144,0.30866571,137.11,137.06,6.5728]
[1767834755444,0.30866571,137.11,137.06,13.313463]
[1767834757245,0.30866571,137.11,137.06,6.5728]
[1767834757848,6.5701,137.12,137.06,13.313463]
[1767834758048,6.8944227,137.12,137.06,13.313463]
[1767834759548,0.3243227,137.12,137.07,13.312863]
[1767834760846,0.3243227,137.12,137.07,6.740663]
[1767834761048,6.8943227,137.12,137.06,6.740663]
[1767834761350,0.3243227,137.11,137.05,6.740663]
[1767834761542,0.3243227,137.11,137.04,6.740663]
[1767834762652,6.8948227,137.11,137.04,13.314063]
[1767834763153,6.8948227,137.11,137.04,6.740663]
[1767834763755,0.3243227,137.1,137.04,6.740663]
[1767834764553,0.3243227,137.1,137.05,6.5733]
[1767834766151,6.8953227,137.1,137.04,13.314463]
[1767834772462,9.04439856,137.1,137.04,13.314463]
[1767834773864,9.04439856,137.1,137.04,6.5738]
[1767834774067,9.04439856,137.1,137.04,13.31841354]
[1767834776860,6.8948227,137.11,137.05,6.5731]
[1767834777261,8.72047586,137.1,137.04,6.74461354]
[1767834777454,0.3243227,137.09,137.04,6.74461354]
[1767834778465,2.47339856,137.08,137.02,6.74461354]
[1767834779371,2.47339856,137.06,137.02,6.74461354]
[1767834780369,9.04629856,137.06,137.02,6.74461354]
[1767834781072,9.04629856,137.06,137.01,6.74461354]
[1767834781268,9.04629856,137.06,137.0,6.74461354]
[1767834782265,0.3014382,137.05,137.0,6.74461354]
[1767834782476,0.3014382,137.04,136.99,6.74461354]
[1767834782672,2.45051406,137.04,136.99,6.74461354]
[1767834783169,0.3014382,137.03,136.98,13.32131354]
[1767834783572,2.14907586,137.02,136.96,13.32181354]
[1767834783975,2.14907586,137.0,136.95,6.74461354]
[1767834784268,2.14907586,137.0,136.93,9.03134733]
[1767834784269,2.14907586,137.0,136.94,6.74461354]
[1767834784876,2.14907586,137.0,136.94,6.5783]
[1767834785870,2.14907586,137.0,136.95,6.5781]
[1767834786072,0.3014382,137.01,136.95,6.5781]
[1767834787478,86.24,137.02,136.93,2.14907586]
[1767834787687,0.3014382,137.03,136.96,6.5776]
[1767834788495,0.3014382,137.03,136.95,2.14907586]
[1767834788496,0.3014382,137.03,136.97,6.5771]
[1767834789893,6.5727,137.07,136.98,1.46]
[1767834790091,0.3014382,137.1,137.01,2.14907586]
[1767834791496,0.3014382,137.1,137.03,2.14907586]
[1767834791685,0.3014382,137.1,137.04,6.5737]
[1767834792493,0.3014382,137.1,137.03,2.14907586]
[1767834793193,6.8724382,137.1,137.03,8.72327586]
[1767834794193,6.8718382,137.12,137.04,6.5737]
[1767834795287,6.8718382,137.12,137.05,2.14907586]
[1767834797896,0.3014382,137.12,137.05,8.72237586]
[1767834800605,0.04652983,137.1,137.07,0.05350289]
[1767834803506,0.04652983,137.1,137.07,8.77487875]
[1767834805600,6.5681,137.16,137.09,2.14907586]
[1767834805799,0.3014382,137.17,137.11,2.14907586]
[1767834806313,0.3014382,137.2,137.11,2.14907586]
[1767834806909,0.3014382,137.2,137.14,0.04659837]
[1767834807302,0.3014382,137.17,137.09,2.14907586]
[1767834808610,6.8690382,137.17,137.1,6.5708]
[1767834812509,0.30677855,137.16,137.08,94.94067586]
[1767834813707,6.5686,137.15,137.08,94.94067586]
[1767834814514,0.30677855,137.16,137.09,6.5714]
[1767834815111,6.87487855,137.16,137.09,6.5714]
[1767834818518,6.87427855,137.18,137.1,8.71977586]
[1767834819418,6.87427855,137.18,137.11,6.5704]
[1767834820316,86.2,137.2,137.13,6.5693]
[1767834820317,6.87317855,137.2,137.13,6.5693]
[1767834821221,0.30677855,137.19,137.11,6.5701]
[1767834822714,6.5677,137.17,137.11,6.5701]
[1767834831027,6.87387855,137.18,137.11,6.5701]
[1767834831926,6.87387855,137.18,137.06,124.41624733]
[1767834831927,102.2626,137.04,136.9,102.3617]
[1767834832130,2.14907586,136.98,136.9,2.14907586]
[1767834832428,2.14907586,136.96,136.85,102.4015]
[1767834832729,3.36506251,136.98,136.86,188.5939]
[1767834832925,5.56196123,136.97,136.86,188.5939]
[1767834833116,3.36506251,136.98,136.86,188.5939]
[1767834833320,5.56205457,136.97,136.86,188.5939]
[1767834833625,3.36506251,136.98,136.88,6.5813]
[1767834833826,5.86239406,136.97,136.88,6.5813]
[1767834834027,0.30677855,136.97,136.88,6.5813]
[1767834834428,0.30677855,137.0,136.89,105.73596251]
[1767834834821,0.30677855,137.0,136.91,6.5797]
[1767834835023,0.30677855,137.0,136.9,102.3637]
[1767834835624,0.30677855,137.0,136.9,188.5837]
[1767834835832,0.30677855,137.0,136.92,6.5793]